bitfinex/quotes_ETHUSD_20250110
["timestamp","ask_amount","ask_price","bid_price","bid_amount"]
[1736520324102,0.372,3269.5,3269.0,0.0225]
[1736520324303,0.372,3269.5,3268.7,0.03058854]
[1736520324601,0.02287628,3269.4,3267.7,3.06017]
[1736520324807,0.7776,3269.3,3268.0,0.62493682]
[1736520325009,0.7776,3269.3,3268.1,0.015]
[1736520325010,0.02287628,3269.2,3268.1,0.015]
[1736520325210,3.08172628,3269.2,3268.3,0.015]
[1736520325512,0.02287628,3269.2,3268.3,0.015]
[1736520325722,0.7776,3269.3,3268.8,0.015]
[1736520325917,0.02287628,3269.2,3268.8,0.0075]
[1736520326520,0.02287628,3269.2,3268.4,0.0075]
[1736520326742,0.02287628,3269.2,3267.7,3.06025]
[1736520327067,0.02287628,3269.2,3267.8,0.60386812]
[1736520327202,0.02287628,3269.2,3268.4,3.0]
[1736520327403,0.372,3269.1,3268.8,0.0225]
[1736520327641,0.7776,3269.8,3269.0,0.0075]
[1736520327843,0.7776,3269.8,3269.5,0.015]
[1736520328143,5.0636,3270.4,3269.8,0.0075]
[1736520328377,0.7776,3270.4,3270.0,0.0075]
[1736520328513,0.7776,3270.4,3270.0,0.015]
[1736520328716,0.7776,3270.4,3270.3,3.08032]
[1736520328928,0.372,3270.6,3270.5,3.08013]
[1736520329131,3.05631,3272.0,3270.0,0.03057911]
[1736520329132,0.7776,3271.8,3271.1,3.05706]
[1736520329348,0.02287628,3271.7,3271.2,0.0225]
[1736520329849,1.1496,3271.8,3271.2,3.07946]
[1736520330055,1.1496,3271.8,3271.6,3.05657]
[1736520330260,0.7776,3272.2,3271.7,0.0075]
[1736520330553,0.39487628,3272.1,3271.2,3.0569]
[1736520330713,0.39487628,3272.1,3270.5,3.05755]
[1736520330714,0.81771891,3272.1,3270.5,3.05755]
[1736520331056,0.7776,3272.2,3270.7,3.68367808]
[1736520331350,0.02287628,3272.1,3271.5,3.05668]
[1736520331563,0.02287628,3272.1,3270.7,0.62627808]
[1736520331875,1.17247628,3272.2,3271.9,0.0075]
[1736520332187,0.02287628,3272.1,3271.6,0.0225]
[1736520332375,0.02287628,3272.1,3271.3,0.0225]
[1736520332571,0.372,3272.0,3271.3,0.0225]
[1736520332755,0.7776,3272.2,3271.9,3.07882]
[1736520332943,0.7776,3272.2,3271.9,0.0225]
[1736520333379,0.1648217,3272.4,3272.3,0.0225]
[1736520333599,0.1648217,3272.4,3272.3,3.07845]
[1736520335104,0.1648217,3272.4,3272.3,7.90925]
[1736520335262,1.7e-06,3272.4,3272.3,7.90925]
[1736520335461,0.005,3274.0,3273.4,0.0225]
[1736520335703,3.05314,3275.4,3274.3,0.0225]
[1736520335862,0.02287628,3275.3,3274.5,0.0225]
[1736520336263,0.02287628,3275.3,3274.0,3.0543]
[1736520336461,0.02287628,3275.3,3273.1,3.98159037]
[1736520336462,0.02287628,3275.3,3273.5,0.62064531]
[1736520336803,0.02287628,3275.3,3274.3,0.0225]
[1736520337164,0.02287628,3275.3,3273.5,0.62064531]
[1736520337370,0.7776,3274.9,3273.9,3.05443]
[1736520337575,0.02287628,3274.8,3273.8,0.0225]
[1736520337989,0.02287628,3274.8,3274.2,0.0225]
[1736520338306,0.1648217,3275.6,3275.0,0.0225]
[1736520339265,0.1648217,3275.6,3274.8,3.0]
[1736520339471,0.1648217,3275.6,3274.5,1.1591]
[1736520339722,0.1648217,3275.6,3274.8,0.0225]
[1736520339939,0.1648217,3275.6,3274.6,3.05374]
[1736520340088,0.5268655,3275.6,3274.6,3.05374]
[1736520340282,0.5268655,3275.6,3274.0,4.24579]
[1736520340283,0.02287628,3275.5,3274.3,3.0]
[1736520340508,3.05325,3275.2,3273.9,6.05438]
[1736520340726,3.05325,3275.2,3273.5,4.217]
[1736520340727,0.02287628,3275.1,3274.1,3.05423]
[1736520340943,0.02287628,3275.1,3273.6,7.03626037]
[1736520340944,0.02287628,3275.1,3274.2,3.06915]
[1736520341129,0.02287628,3275.1,3274.2,0.015]
[1736520341327,0.02287628,3275.1,3274.3,0.0075]
[1736520341590,0.02287628,3275.2,3274.3,0.0075]
[1736520342083,0.7776,3275.3,3274.9,0.0225]
[1736520342287,0.7776,3275.3,3274.4,0.015]
[1736520342288,0.7776,3275.3,3274.4,3.0]
[1736520342523,3.05357,3274.9,3273.2,3.0551]
[1736520342725,3.05372,3274.7,3273.6,3.05471]
[1736520342895,0.40287628,3274.6,3273.8,0.015]
[1736520343113,0.40287628,3274.6,3273.8,0.0305429]
[1736520343292,0.40287628,3274.6,3273.5,0.03054515]
[1736520343492,0.40287628,3274.6,3273.6,0.0225]
[1736520343853,3.43352,3274.9,3273.9,0.0225]
[1736520344048,0.02287628,3274.8,3274.1,0.0225]
[1736520345170,0.02287628,3274.8,3272.7,3.05555]
[1736520345459,0.02287628,3274.8,3272.2,0.65833677]
[1736520345460,0.38,3274.7,3273.4,0.03054651]
[1736520345632,0.02287628,3274.6,3273.7,3.05462]
[1736520345793,0.02287628,3274.6,3273.1,7.03673037]
[1736520345794,0.02287628,3274.6,3273.1,4.59961858]
[1736520345995,3.05409,3274.3,3273.1,0.61802821]
[1736520346193,6.05321,3275.3,3273.0,3.05529]
[1736520346194,0.02287628,3274.2,3273.0,3.05529]
[1736520346453,3.0541,3274.3,3273.1,3.08565877]
[1736520346661,0.33057391,3274.2,3272.6,3.91858]
[1736520346818,0.02287628,3274.2,3272.3,3.05586]
[1736520347151,3.05536,3273.0,3271.7,3.05651]
[1736520347367,0.40287628,3272.9,3271.8,0.03055974]
[1736520347539,0.40287628,3272.9,3271.9,0.015]
[1736520347740,0.40287628,3272.9,3272.1,3.05612]
[1736520348065,0.40287628,3272.9,3272.2,0.03055848]
[1736520348273,0.40287628,3272.9,3271.6,1.48561616]
[1736520348274,0.38,3272.9,3271.6,1.48561616]
[1736520348588,0.02287628,3272.8,3271.2,0.94886079]
[1736520348744,0.02287628,3272.8,3271.5,0.015]
[1736520348945,0.38,3273.2,3272.1,0.0075]
[1736520349147,0.02287628,3273.1,3272.3,0.0075]
[1736520349347,0.02287628,3273.3,3272.3,3.09397566]
[1736520349526,0.02287628,3273.3,3272.2,0.015]
[1736520349527,0.36864791,3273.3,3272.2,0.03805567]
[1736520349726,0.02287628,3273.3,3272.2,3.09406567]
[1736520350040,0.02287628,3273.3,3272.3,3.05593]
[1736520350242,0.38,3273.4,3272.7,0.0225]
[1736520350455,3.05426,3274.2,3273.2,3.05508]
[1736520350456,0.02287628,3274.1,3273.2,3.05508]
[1736520350658,3.07718628,3274.1,3273.1,3.06267]
[1736520350825,0.91859491,3274.1,3272.0,1.05984469]
[1736520351031,3.05502,3273.3,3272.2,3.056]
[1736520351230,0.02287628,3273.2,3272.2,3.056]
[1736520351431,0.02287628,3273.2,3272.1,0.015]
[1736520351655,3.05503,3273.3,3272.1,3.06357]
[1736520351865,3.05544,3272.9,3271.7,3.05643]
[1736520352069,3.05544,3272.9,3270.5,3.05755]
[1736520352070,0.40287628,3272.8,3271.3,0.59881448]
[1736520352394,3.45837628,3272.8,3271.4,0.0075]
[1736520352702,0.40287628,3272.7,3271.7,0.015]
[1736520352835,0.40287628,3272.7,3271.8,0.015]
[1736520353031,0.02287628,3273.3,3272.5,3.05574]
[1736520353255,3.05467,3273.7,3272.1,3.05614]
[1736520353256,0.02287628,3273.4,3272.6,0.03055492]
[1736520353488,0.02287628,3273.4,3272.4,0.0075]
[1736520353630,0.02287628,3273.4,3272.8,3.05547]
[1736520353945,3.05448,3273.9,3272.4,0.0075]
[1736520353946,0.02287628,3273.6,3273.0,0.015]
[1736520354145,0.40287628,3273.9,3272.6,0.0075]
[1736520354345,0.40287628,3273.9,3272.6,0.0305522]
[1736520354346,0.38,3273.8,3272.6,0.0305522]
[1736520354561,0.38,3273.8,3272.6,0.03055136]
[1736520354842,6.0539,3274.6,3273.1,3.05511]
[1736520354843,0.38,3273.9,3273.1,3.05511]
[1736520354996,0.38,3273.9,3272.8,0.0075]
[1736520354997,0.38,3273.9,3272.9,3.06289]
[1736520355146,0.38,3273.9,3273.1,3.05518]
[1736520355356,0.02287628,3273.8,3273.3,0.015]
[1736520355592,0.38,3273.9,3273.6,3.05465]
[1736520356451,3.05382,3274.6,3273.6,3.05465]
[1736520356452,0.02287628,3274.5,3274.0,3.05434]
[1736520356654,0.38,3274.7,3273.8,0.0225]
[1736520356890,0.38,3274.7,3273.9,3.05443]
[1736520357087,0.38,3274.7,3274.0,3.05436]
[1736520357449,0.02287628,3274.9,3274.4,3.05397]
[1736520357646,0.02287628,3274.9,3274.1,0.0225]
[1736520357647,0.02287628,3275.3,3274.5,0.03054031]
[1736520357896,0.02287628,3275.3,3274.3,3.054]
[1736520358063,0.02287628,3275.3,3274.5,0.015]
[1736520358264,0.38,3275.4,3274.8,3.05358]
[1736520358692,0.1648217,3275.6,3275.0,0.0075]
[1736520359008,0.1648217,3275.6,3274.4,0.60198765]
[1736520359172,0.02287628,3275.5,3274.5,0.0305351]
[1736520359478,0.02287628,3275.5,3274.4,0.0225]
[1736520359691,0.02287628,3275.5,3274.6,3.07622]
[1736520359867,0.18769798,3275.6,3274.6,0.0075]
[1736520360067,0.18769798,3275.6,3274.6,3.05372]
[1736520360313,0.51174778,3275.6,3274.3,0.6037618]
[1736520360469,0.1648217,3275.6,3274.5,3.0539]
[1736520360675,0.1648217,3275.6,3274.9,3.05349]
[1736520360979,0.5448217,3275.6,3274.3,0.6037618]
[1736520361166,0.02287628,3275.5,3274.1,0.8849]
[1736520361374,3.0534,3275.1,3273.9,3.05437]
[1736520361725,3.0534,3275.1,3273.2,3.05511]
[1736520361726,0.32821628,3275.0,3273.3,0.59947937]
[1736520362011,0.32821628,3275.0,3272.5,0.8907]
[1736520362012,6.07638628,3275.0,3272.5,0.8907]
[1736520362183,3.0,3275.0,3272.8,0.0075]
[1736520362379,3.0,3274.5,3272.5,0.8907]
[1736520362704,3.05307,3275.4,3272.5,0.8907]
[1736520362705,0.374,3274.4,3273.6,3.05465]
[1736520362906,0.374,3274.6,3273.8,0.0225]
[1736520363245,0.374,3275.0,3274.0,0.0225]
[1736520363378,0.02287628,3274.9,3274.0,0.0225]
[1736520363575,0.02287628,3274.9,3273.5,0.9251]
[1736520363576,3.05372,3274.7,3273.7,3.05462]
[1736520363779,0.32824828,3274.6,3272.8,0.8905]
[1736520364091,3.07675628,3274.6,3273.4,3.0549]
[1736520364295,3.05396,3274.5,3273.4,3.0549]
[1736520364494,0.02287628,3274.4,3273.2,3.07758]
[1736520364678,0.02287628,3274.4,3273.4,3.05492]
[1736520364887,3.2177717,3275.6,3273.6,0.0225]
[1736520365090,0.71865345,3275.5,3273.8,3.05449]
[1736520365303,3.05348,3275.0,3273.9,3.05442]
[1736520365548,0.71865345,3275.5,3273.3,3.0]
[1736520365549,3.05397,3274.5,3273.3,3.05501]
[1736520365681,3.98159037,3274.2,3271.9,0.8834]
[1736520365884,3.05436,3274.0,3271.6,3.0566]
[1736520366106,0.66799991,3273.9,3271.7,0.03055784]
[1736520366304,0.66799991,3273.9,3271.3,3.0]
[1736520366305,3.05555,3272.8,3271.3,3.05682]
[1736520366507,3.05594,3272.4,3271.2,3.05691]
[1736520366820,0.39687628,3272.7,3271.0,0.9183]
[1736520366821,0.02287628,3272.3,3271.3,0.03056518]
[1736520367046,0.374,3272.7,3271.5,0.015]
[1736520367345,0.374,3272.7,3271.5,0.0075]
[1736520367508,0.374,3272.8,3271.5,0.03055816]
[1736520367702,0.374,3272.8,3271.2,6.05689]
[1736520367703,3.4295,3272.8,3271.2,6.05689]
[1736520367903,0.36582628,3272.7,3271.1,3.98159037]
[1736520368109,0.02287628,3272.7,3271.3,0.65204056]
[1736520368303,3.0,3273.8,3271.3,0.65204056]
[1736520368304,0.02287628,3273.7,3271.3,0.62148015]
[1736520368503,3.05483,3273.5,3271.9,3.05626]
[1736520368744,0.02287628,3273.4,3272.0,3.05622]
[1736520368905,3.05533,3273.0,3271.8,3.07138]
[1736520369107,0.02287628,3272.9,3271.9,0.0075]
[1736520369408,0.374,3272.9,3272.5,3.05574]
[1736520369632,0.374,3272.9,3272.0,0.8683]
[1736520369633,0.374,3272.9,3272.6,0.03055491]
[1736520369833,0.02287628,3273.8,3273.2,3.0551]
[1736520370068,0.374,3273.8,3273.3,0.03055003]
[1736520370206,0.02287628,3274.4,3273.2,3.05511]
[1736520370405,0.374,3274.6,3273.8,0.015]
[1736520370633,0.374,3274.6,3273.8,3.06953]
[1736520370833,0.374,3274.6,3273.6,3.05471]
[1736520371033,0.02287628,3274.5,3273.0,3.9148]
[1736520371234,0.02287628,3274.5,3272.8,0.61132404]
[1736520371434,0.02287628,3274.5,3272.2,0.8889]
[1736520371636,3.05473,3273.7,3272.3,3.05595]
[1736520371948,3.05473,3273.7,3272.3,3.0559]
[1736520371949,3.05497,3273.4,3272.3,3.0559]
[1736520372249,0.39687628,3273.3,3272.6,3.05566]
[1736520372420,0.39687628,3273.3,3272.6,3.05567]
[1736520372625,0.374,3273.3,3272.8,3.05539]
[1736520372822,3.98159037,3275.2,3272.9,0.03055227]
[1736520373144,3.05402,3274.4,3272.8,3.05543]
[1736520373328,0.02287628,3274.3,3272.5,3.05575]
[1736520373658,3.05427,3274.1,3271.8,0.8677]
[1736520373864,3.05613,3272.2,3271.1,3.05699]
[1736520374161,0.39687628,3272.1,3270.3,0.8677]
[1736520374361,3.43025,3272.0,3270.8,3.05735]
[1736520374662,0.02287628,3271.9,3270.4,0.61202326]
[1736520374817,0.02287628,3271.9,3271.0,3.05713]
[1736520375156,0.374,3272.2,3271.2,0.015]
[1736520375331,0.374,3272.2,3271.4,0.0225]
[1736520375657,0.374,3272.6,3271.8,3.05635]
[1736520375957,0.374,3272.6,3271.4,3.05678]
[1736520375958,3.05578,3272.5,3271.4,3.05678]
[1736520376260,0.374,3272.6,3271.3,6.05688]
[1736520376462,0.374,3272.6,3272.1,3.05606]
[1736520376760,0.374,3272.6,3271.9,0.015]
[1736520376931,0.374,3272.6,3271.3,3.0]
[1736520377135,0.374,3272.6,3271.4,3.08735251]
[1736520377325,0.02287628,3272.5,3271.0,3.98159037]
[1736520377683,0.02287628,3272.5,3271.3,0.015]
[1736520377877,0.374,3272.4,3271.3,3.05686]
[1736520378157,0.374,3272.4,3271.0,3.0]
[1736520378158,0.02287628,3272.3,3271.0,3.0]
[1736520378319,0.02287628,3272.3,3271.0,3.05715]
[1736520378657,0.02287628,3272.3,3270.3,0.9108]
[1736520378658,3.05653,3271.7,3270.3,0.9108]
[1736520378858,0.374,3272.4,3270.3,0.9108]
[1736520378859,0.02287628,3271.6,3270.9,3.05716]
[1736520379056,3.42992,3272.4,3270.3,0.9108]
[1736520379057,3.05643,3271.8,3270.5,0.015]
[1736520379259,0.02287628,3271.7,3270.7,3.0574]
[1736520379475,0.02287628,3271.7,3270.5,3.04557089]
[1736520379762,0.02287628,3271.7,3270.3,3.9108]
[1736520379921,0.02287628,3271.7,3270.5,3.05756]
[1736520380120,0.02287628,3271.7,3270.1,3.06544]
[1736520380121,3.05698,3271.2,3270.1,3.05793]
[1736520380315,0.39687628,3271.1,3270.3,3.0]
[1736520380657,0.374,3271.0,3269.1,3.05892]
[1736520380857,0.02287628,3270.9,3270.2,3.05789]
[1736520381044,0.02287628,3270.9,3269.8,0.0075]
[1736520381245,0.02287628,3270.9,3269.8,3.015]
[1736520381453,0.02287628,3270.9,3270.1,3.05793]
[1736520381945,0.374,3271.0,3269.5,3.05848]
[1736520382265,0.02287628,3270.9,3269.7,0.015]
[1736520382430,0.02287628,3271.8,3270.1,0.0075]
[1736520382636,3.05603,3272.3,3270.3,3.0653]
[1736520382637,3.05676,3271.5,3270.3,3.0653]
[1736520382847,0.02287628,3271.4,3268.8,3.78709518]
[1736520383065,0.02287628,3271.4,3269.4,3.05866]
[1736520383066,3.05726,3270.9,3269.4,3.05866]
[1736520383362,3.05747,3270.7,3269.5,3.05852]
[1736520383524,3.08044628,3270.6,3269.0,7.04055037]
[1736520383728,3.08044628,3270.6,3269.6,3.0]
[1736520383918,3.08044628,3270.6,3269.6,3.05841]
[1736520384270,3.05804,3270.1,3268.8,1.20480841]
[1736520384439,0.02287628,3270.0,3268.8,0.31960841]
[1736520384622,3.05819,3269.9,3268.8,0.31960841]
[1736520384825,0.33098291,3269.8,3268.8,0.31960841]
[1736520385029,0.02287628,3269.8,3268.8,0.31960841]
[1736520385569,0.02287628,3270.0,3268.8,0.31960841]
[1736520385761,3.0583,3269.8,3268.8,0.31960841]
[1736520385950,0.02287628,3269.7,3268.8,0.31960841]
[1736520386263,3.38937391,3269.7,3268.8,0.31960841]
[1736520386447,0.02287628,3269.7,3268.8,0.31960841]
[1736520386649,0.55,3270.2,3268.8,0.31960841]
[1736520386835,0.02287628,3270.1,3268.8,0.31960841]
[1736520387041,3.05871,3269.4,3268.8,0.31960841]
[1736520387237,0.39787628,3269.3,3268.8,0.31960841]
[1736520387561,0.39787628,3269.3,3267.5,3.06789]
[1736520387562,0.74352691,3269.3,3267.3,3.06054]
[1736520387770,3.05928,3268.8,3267.6,3.06031]
[1736520388057,0.02287628,3268.7,3267.4,3.06052]
[1736520388274,3.05949,3268.6,3267.4,3.06052]
[1736520388575,3.05949,3268.6,3266.9,3.94402]
[1736520388576,0.02287628,3268.5,3266.9,3.06846]
[1736520388722,3.05981,3268.2,3266.6,3.0612]
[1736520388923,0.02287628,3268.1,3267.3,0.0075]
[1736520389123,0.375,3268.2,3267.4,0.015]
[1736520389420,0.375,3268.2,3267.3,0.03060259]
[1736520389689,0.375,3268.2,3266.8,3.06109]
[1736520389966,0.02287628,3268.1,3266.8,3.06109]
[1736520390139,0.02287628,3268.1,3266.7,0.9136]
[1736520390140,0.02287628,3268.1,3267.3,3.0075]
[1736520390323,0.375,3268.6,3267.5,0.0075]
[1736520390524,0.375,3268.6,3266.7,0.9136]
[1736520390525,0.02287628,3268.5,3266.7,0.9136]
[1736520390723,0.02287628,3268.5,3266.5,3.06129]
[1736520390724,3.0596,3268.4,3266.5,3.06129]
[1736520390963,3.05995,3268.1,3266.2,1.53781123]
[1736520391288,0.02287628,3268.0,3266.2,1.53781123]
[1736520391427,0.02287628,3268.5,3267.5,3.06035]
[1736520391627,0.02287628,3268.5,3267.6,3.06033]
[1736520391824,0.36859691,3268.5,3267.3,3.06056]
[1736520392030,0.55,3268.3,3266.4,0.60699626]
[1736520392340,3.63270628,3268.2,3266.3,3.06156]
[1736520392535,3.06017,3267.8,3266.6,3.06119]
[1736520392756,0.02287628,3267.7,3266.8,3.06109]
[1736520392942,0.02287628,3267.7,3266.9,3.06099]
[1736520393265,0.02287628,3267.7,3266.9,3.0]
[1736520393426,0.55,3267.6,3265.7,0.8692]
[1736520393630,0.02287628,3267.5,3266.1,3.06166]
[1736520393867,0.37,3267.4,3266.1,3.06166]
[1736520394069,0.57287628,3267.3,3265.3,0.8692]
[1736520394224,0.0075,3267.1,3265.2,3.66074435]
[1736520394423,3.06148,3266.4,3265.2,3.06257]
[1736520394624,3.06148,3266.4,3264.7,3.93217]
[1736520394625,3.06193,3266.0,3264.7,3.68006203]
[1736520394878,0.39287628,3265.9,3264.1,0.9313]
[1736520395083,0.39287628,3265.9,3264.2,0.61062665]
[1736520395401,0.02287628,3265.9,3264.6,3.06316]
[1736520395527,0.37,3265.9,3264.8,3.06297]
[1736520395727,3.55,3265.6,3262.7,3.2297117]
[1736520395927,3.06308,3264.7,3263.3,3.06431]
[1736520396176,3.06326,3264.5,3262.7,0.1648217]
[1736520396362,0.02287628,3264.4,3263.0,3.06465]
[1736520396563,0.02287628,3264.4,3262.7,0.1648217]
[1736520396782,0.02287628,3264.5,3263.2,3.0]
[1736520397082,0.02287628,3264.5,3263.1,3.06454]
[1736520397083,3.08612628,3264.5,3263.1,3.06454]
[1736520397290,0.55,3264.3,3262.7,0.1648217]
[1736520397490,0.55,3263.9,3262.7,0.1648217]
[1736520397786,3.55,3263.6,3262.7,0.1648217]
[1736520398012,0.55,3263.3,3262.7,0.1648217]
[1736520398142,0.02287628,3263.2,3262.7,0.1648217]
[1736520398343,3.06476,3262.9,3262.7,0.1648217]
[1736520398539,0.02287628,3262.8,3262.7,0.1648217]
[1736520398959,0.37,3262.8,3262.7,0.1648217]
[1736520399281,3.43485,3262.8,3262.7,0.1648217]
[1736520399499,4.328335,3262.8,3262.7,0.1648217]
[1736520399704,4.35871128,3262.8,3262.7,1.7e-06]
[1736520399960,4.35871128,3262.8,3261.5,9.18e-06]
[1736520399961,3.0075,3262.7,3261.5,9.18e-06]
[1736520400108,6.08791628,3262.6,3261.5,9.18e-06]
[1736520400420,4.291,3262.7,3261.5,9.18e-06]
[1736520400421,1.43076791,3262.5,3261.5,9.18e-06]
[1736520400730,3.06524,3262.4,3261.5,9.18e-06]
[1736520400908,0.02287628,3262.3,3261.5,9.18e-06]
[1736520401730,3.06589,3261.7,3261.5,9.18e-06]
[1736520401938,3.08884628,3261.6,3261.5,9.18e-06]
[1736520402085,3.39773091,3261.6,3261.5,9.18e-06]
[1736520402912,6.39773091,3261.6,3261.5,9.18e-06]
[1736520403204,6.37485463,3261.6,3261.5,9.18e-06]
[1736520403572,3.06644,3261.1,3259.4,0.1648217]
[1736520403820,3.06664,3260.9,3259.4,0.1648217]
[1736520404069,0.36882791,3260.8,3259.4,0.1648217]
[1736520404269,3.06685,3260.7,3259.4,3.1648217]
[1736520404579,0.39287628,3260.6,3259.5,0.015]
[1736520404776,0.37,3260.7,3259.7,0.0225]
[1736520404939,0.37,3260.7,3259.8,3.0]
[1736520405138,0.02287628,3260.6,3259.4,3.2328617]
[1736520405352,0.02287628,3260.6,3259.8,3.06764]
[1736520405561,0.02287628,3260.6,3260.0,0.015]
[1736520405738,0.02287628,3260.6,3259.6,3.06777]
[1736520405956,3.06704,3260.5,3259.4,0.1648217]
[1736520406124,0.33186791,3260.4,3259.4,0.1648217]
[1736520406329,0.02287628,3260.4,3259.5,0.015]
[1736520406555,0.02287628,3260.4,3259.4,0.1648217]
[1736520407183,3.0,3260.6,3259.4,0.1648217]
[1736520407184,0.57287628,3260.5,3259.4,0.1648217]
[1736520407334,0.55,3259.5,3259.4,0.1648217]
[1736520407552,0.39287628,3259.5,3259.4,0.1648217]
[1736520408856,0.37,3259.5,3259.4,0.1648217]
[1736520409448,4.35460528,3259.5,3259.4,0.1648217]
[1736520409655,7.35460528,3259.5,3259.4,0.1648217]
[1736520409851,3.5575,3259.4,3257.3,3.06995]
[1736520410160,3.61861,3258.8,3257.5,3.0]
[1736520410373,0.02287628,3258.7,3257.7,0.0075]
[1736520410686,0.37,3258.7,3258.6,3.0688]
[1736520410887,0.37,3258.7,3258.6,6.0838]
[1736520411253,0.371,3259.3,3258.7,3.0075]
[1736520411487,0.371,3259.4,3258.9,3.0]
[1736520411659,0.371,3259.4,3258.8,3.06861]
[1736520411660,0.371,3259.4,3259.0,0.015]
[1736520411984,0.371,3260.1,3259.7,3.06768]
[1736520412288,0.371,3260.1,3259.3,6.06807]
[1736520412289,0.02287628,3260.0,3259.3,3.06812]
[1736520412673,3.09038628,3260.0,3258.8,3.06856]
[1736520412860,0.34613863,3259.9,3258.8,3.06856]
[1736520413062,0.02287628,3259.8,3259.0,0.0075]
[1736520413257,0.371,3260.1,3259.0,0.0075]
[1736520413258,0.02287628,3260.0,3259.4,0.0225]
[1736520413450,0.02287628,3260.0,3258.9,3.0685]
[1736520413670,0.02287628,3260.0,3258.6,3.0]
[1736520413987,3.06805,3259.4,3258.1,3.06923]
[1736520414191,0.02287628,3259.3,3258.1,3.06923]
[1736520414388,0.02287628,3259.3,3258.0,0.015]
[1736520414575,3.06809,3259.4,3258.1,3.06927]
[1736520414777,0.02287628,3259.3,3257.9,0.88979135]
[1736520415003,3.06819,3259.3,3258.1,3.06922]
[1736520415208,0.32969528,3259.2,3258.2,3.0]
[1736520415519,0.55,3259.1,3257.0,0.8747]
[1736520415715,4.00446665,3259.0,3257.2,3.07012]
[1736520416033,4.00446665,3259.0,3257.0,1.48617365]
[1736520416034,0.02287628,3259.0,3257.6,0.0075]
[1736520416259,0.371,3258.9,3258.2,0.015]
[1736520416415,0.39387628,3258.8,3258.2,3.08417]
[1736520416724,0.39387628,3258.8,3258.2,0.015]
[1736520416888,0.39387628,3258.8,3257.8,3.06953]
[1736520417090,0.74011891,3258.8,3258.1,0.015]
[1736520417291,0.39387628,3258.8,3258.1,0.0075]
[1736520417493,0.39387628,3258.8,3257.8,3.06955]
[1736520417694,0.39387628,3258.8,3258.2,3.06915]
[1736520417895,0.39387628,3258.8,3258.1,0.0075]
[1736520418193,0.39387628,3258.8,3258.0,0.0075]
[1736520418381,0.39387628,3258.8,3257.8,3.0]
[1736520418588,0.39387628,3258.8,3257.5,0.8424]
[1736520418790,0.39387628,3258.8,3258.0,6.07677]
[1736520418983,0.39387628,3258.8,3257.5,3.06983]
[1736520418984,3.0688,3258.6,3257.5,3.06983]
[1736520419311,0.55,3258.2,3256.3,0.8696]
[1736520419483,0.02287628,3258.1,3256.4,3.07087]
[1736520419683,0.371,3258.0,3256.5,0.0457044]
[1736520420020,0.02287628,3257.9,3257.4,3.0]
[1736520420326,0.371,3258.0,3257.2,3.07004]
[1736520420491,0.371,3258.0,3256.9,0.0075]
[1736520420492,0.02287628,3257.9,3256.9,0.0075]
[1736520420686,0.02287628,3257.9,3256.2,0.1648217]
[1736520420884,3.98159037,3257.5,3256.2,0.1648217]
[1736520421128,6.07046,3256.9,3256.2,0.1648217]
[1736520421295,3.07097,3256.3,3256.2,0.1648217]
[1736520421497,0.02287628,3256.6,3256.2,0.1648217]
[1736520422250,3.07081,3256.5,3256.2,0.1648217]
[1736520422401,0.02287628,3256.4,3256.2,0.1648217]
[1736520422727,0.02287628,3256.7,3256.2,0.1648217]
[1736520422885,4.301,3258.2,3256.8,0.0075]
[1736520422886,0.369,3257.6,3256.8,0.0075]
[1736520423087,0.369,3257.6,3257.5,3.06983]
[1736520423543,3.98159037,3258.0,3256.4,0.844]
[1736520423832,0.369,3257.6,3256.4,3.07078]
[1736520423988,3.0,3257.4,3256.3,0.32062162]
[1736520424188,3.98159037,3257.0,3256.3,0.32062162]
[1736520424386,3.0708,3256.5,3256.3,0.32062162]
[1736520424625,0.39187628,3256.4,3256.3,0.32062162]
[1736520424996,0.02287628,3256.4,3256.3,0.32062162]
[1736520425212,0.369,3256.6,3256.3,0.32062162]
[1736520425729,0.02287628,3256.5,3256.3,0.32062162]
[1736520425927,0.369,3256.6,3256.3,0.015]
[1736520426099,0.369,3256.6,3256.5,0.015]
[1736520426304,0.369,3256.6,3256.2,0.1648217]
[1736520427215,0.02287628,3256.5,3256.2,3.2358617]
[1736520427387,0.369,3256.6,3256.5,3.09328]
[1736520427588,0.369,3256.6,3256.2,0.1648217]
[1736520427792,0.369,3256.6,3256.2,3.1648217]
[1736520428029,0.369,3256.6,3256.2,0.1648217]
[1736520428193,0.02287628,3256.5,3256.2,0.1648217]
[1736520429188,3.09365628,3256.5,3256.2,0.1648217]
[1736520429392,0.02287628,3256.5,3256.2,0.1648217]
[1736520429695,0.369,3256.4,3256.2,0.1648217]
[1736520430140,0.369,3256.4,3256.3,6.08597]
[1736520430341,0.369,3257.2,3256.9,3.07036]
[1736520430503,0.369,3257.2,3256.4,0.0225]
[1736520430700,0.369,3257.2,3256.2,0.1648217]
[1736520430701,0.02287628,3257.1,3256.2,0.1648217]
[1736520431116,0.02287628,3257.1,3256.2,3.2358617]
[1736520431416,0.02287628,3257.1,3256.2,0.1648217]
[1736520431732,3.07084,3256.5,3256.2,0.1648217]
[1736520431929,0.02287628,3256.4,3256.2,0.1648217]
[1736520432117,3.98159037,3257.0,3256.2,0.1648217]
[1736520432321,3.07049,3256.8,3256.2,0.1648217]
[1736520432534,3.07078,3256.5,3256.2,0.1648217]
[1736520432757,0.02287628,3256.4,3256.2,0.1648217]
[1736520433034,0.02287628,3257.1,3256.2,0.1648217]
[1736520433202,0.369,3257.0,3256.5,3.07075]
[1736520433403,0.369,3257.0,3256.3,0.015]
[1736520433404,0.02287628,3256.9,3256.8,3.07049]
[1736520433705,0.369,3257.0,3256.5,0.0075]
[1736520433909,0.369,3257.0,3256.2,0.1648217]
[1736520434112,0.02287628,3256.9,3256.2,0.1648217]
[1736520434435,3.07065,3256.7,3256.2,0.1648217]
[1736520434609,0.02287628,3256.6,3256.2,0.1648217]